bitfinex-derivatives/quotes_ETHF0:USTF0_20220103
["timestamp","ask_amount","ask_price","bid_price","bid_amount"]
[1641168280814,1.26282583,3820.9,3820.8,1.097648]
[1641168281415,0.3896,3820.9,3820.8,1.097648]
[1641168282715,0.45291,3820.9,3820.8,0.7395]
[1641168282917,0.3896,3820.9,3820.8,0.229991]
[1641168284119,0.45291,3820.9,3820.7,2.00479]
[1641168284317,0.45291,3820.9,3820.3,2.00479]
[1641168284719,0.128157,3820.8,3820.3,2.00479]
[1641168288619,0.128157,3820.8,3820.3,2.132947]
[1641168290122,0.128157,3820.8,3820.3,2.00479]
[1641168293424,0.128157,3820.8,3820.3,2.132947]
[1641168293624,1.07917249,3820.9,3820.3,2.905247]
[1641168295527,0.3896,3820.9,3820.3,2.905247]
[1641168295727,0.3896,3820.9,3820.8,1.5]
[1641168295929,0.3896,3820.9,3820.8,0.229991]
[1641168296328,0.3896,3820.9,3820.8,2.234781]
[1641168299429,0.3896,3820.9,3820.8,3.734781]
[1641168300132,0.3896,3820.9,3820.8,2.234781]
[1641168301532,0.3896,3820.9,3820.8,3.734781]
[1641168303736,0.3896,3820.9,3820.8,2.234781]
[1641168303937,0.3896,3820.9,3820.8,3.734781]
[1641168309551,0.3896,3820.9,3820.8,5.35051326]
[1641168310451,0.3896,3820.9,3820.8,7.13539688]
[1641168312152,0.3896,3820.9,3820.8,6.82738067]
[1641168312553,0.3896,3820.9,3820.8,5.04249705]
[1641168313353,0.3896,3820.9,3820.8,3.54249705]
[1641168313553,0.3896,3820.9,3820.8,5.04249705]
[1641168314154,0.3896,3820.9,3820.8,3.54249705]
[1641168314656,0.3896,3820.9,3820.8,5.04249705]
[1641168314957,0.3896,3820.9,3820.8,5.86829705]
[1641168317760,0.87322583,3822.2,3820.8,5.86829705]
[1641168318062,1.16561927,3822.5,3821.9,1.5]
[1641168318260,1.16561927,3822.5,3822.0,0.250513]
[1641168318459,1.16561927,3822.5,3822.3,1.5]
[1641168318659,1.16561927,3822.5,3822.4,4.239571]
[1641168319260,1.16561927,3823.2,3822.4,4.239571]
[1641168319460,1.16561927,3823.2,3823.1,1.5]
[1641168319668,1.16561927,3823.2,3823.1,2.668947]
[1641168320065,1.46302844,3823.4,3823.1,2.668947]
[1641168320266,1.46302844,3823.4,3823.2,1.628157]
[1641168320468,1.74350751,3823.7,3823.2,1.628157]
[1641168320669,1.16989825,3824.5,3823.6,2.00479]
[1641168320968,0.128157,3824.4,3823.6,2.00479]
[1641168321165,1.628157,3824.4,3823.6,2.00479]
[1641168321768,1.5,3824.2,3823.6,2.00479]
[1641168322069,1.5,3823.7,3821.9,3.09205779]
[1641168322265,1.5,3823.2,3821.9,3.09205779]
[1641168322466,0.5658,3823.2,3821.9,3.09205779]
[1641168322665,2.57059,3823.2,3822.3,2.00479]
[1641168322866,2.57059,3823.2,3822.4,0.128157]
[1641168323068,2.698747,3823.2,3822.4,0.128157]
[1641168323866,2.57059,3823.2,3822.4,0.128157]
[1641168325069,0.128157,3823.1,3822.4,0.128157]
[1641168326373,0.128157,3823.1,3822.3,2.00479]
[1641168326571,0.128157,3823.1,3822.4,0.128157]
[1641168326770,0.128157,3823.1,3822.4,0.935057]
[1641168327870,2.00479,3823.2,3822.4,0.935057]
[1641168328270,2.132947,3823.2,3822.4,0.935057]
[1641168329172,2.132947,3823.2,3822.4,0.8069]
[1641168331375,1.5,3823.0,3822.3,2.00479]
[1641168331575,1.5,3822.4,3822.3,2.00479]
[1641168331776,1.5,3822.4,3821.9,2.00479]
[1641168331777,2.515567,3822.4,3821.9,2.00479]
[1641168332380,2.515567,3822.4,3820.3,1.91414344]
[1641168332381,1.5,3822.0,3820.7,1.78488362]
[1641168332580,2.8084929,3820.8,3820.7,1.78488362]
[1641168332784,10.39917964,3820.8,3820.4,2.23123111]
[1641168332980,1.5,3820.5,3820.4,2.23123111]
[1641168333179,1.5,3820.5,3820.4,0.35563746]
[1641168333583,2.59745364,3820.5,3820.4,0.35563746]
[1641168333781,2.59745364,3820.5,3820.1,2.97514042]
[1641168333782,4.03417546,3820.5,3820.1,2.97514042]
[1641168333984,4.03417546,3820.5,3819.7,2.00479]
[1641168334184,3.41211064,3820.5,3819.7,2.00479]
[1641168334384,1.5,3819.8,3818.9,0.98581471]
[1641168334583,1.5,3819.1,3818.9,0.98581471]
[1641168334784,0.06331,3819.0,3818.9,0.98581471]
[1641168334983,0.06331,3819.0,3818.5,2.00479]
[1641168335985,2.00479,3819.3,3818.5,3.50479]
[1641168336189,2.00479,3819.3,3818.5,2.127146]
[1641168336383,2.00479,3819.3,3818.5,3.627146]
[1641168336586,2.00479,3819.3,3818.5,4.392746]
[1641168336884,2.00479,3819.7,3818.5,4.392746]
[1641168337085,2.00479,3819.7,3818.9,1.30834054]
[1641168337285,2.00479,3819.7,3818.5,4.392746]
[1641168337887,2.00479,3819.7,3818.9,1.30834054]
[1641168338287,2.00479,3819.7,3819.0,0.22882408]
[1641168338689,2.00479,3819.7,3819.0,2.23361408]
[1641168339089,0.128157,3819.6,3819.0,2.23361408]
[1641168340088,2.00479,3819.7,3819.0,2.23361408]
[1641168340690,0.88072152,3819.5,3819.1,0.22882408]
[1641168341590,0.88072152,3819.4,3819.2,0.35698108]
[1641168341792,0.88072152,3819.4,3819.3,0.229991]
[1641168341992,0.94403152,3819.4,3819.3,0.6907]
[1641168342492,0.88072152,3819.4,3819.3,0.6907]
[1641168342693,2.00479,3819.7,3819.3,0.920691]
[1641168343292,2.00479,3819.7,3819.3,0.6907]
[1641168345796,2.00479,3819.7,3819.3,2.1907]
[1641168350602,2.00479,3820.1,3819.3,2.1907]
[1641168350898,2.00479,3820.5,3819.7,2.00479]
[1641168351798,0.128157,3820.4,3819.7,2.00479]
[1641168352398,2.00479,3820.5,3819.7,2.00479]
[1641168355101,0.128157,3820.4,3819.7,2.00479]
[1641168356305,2.00479,3820.5,3819.7,2.00479]
[1641168358208,2.00479,3820.5,3819.8,1.5]
[1641168358506,2.00479,3820.5,3819.7,2.00479]
[1641168358707,2.00479,3820.5,3819.8,1.5]
[1641168359305,2.00479,3820.5,3819.7,2.00479]
[1641168359506,2.00479,3820.5,3819.8,1.5]
[1641168359907,2.00479,3820.5,3819.7,2.00479]
[1641168360813,2.00479,3820.5,3819.7,3.50479]
[1641168361009,2.00479,3820.9,3819.7,2.00479]
[1641168362713,2.00479,3820.9,3819.8,0.12745965]
[1641168363512,2.00479,3820.9,3819.8,1.43549215]
[1641168365613,2.00479,3820.9,3819.8,1.3080325]
[1641168366715,2.00479,3820.9,3819.9,0.12997446]
[1641168371319,2.00479,3820.9,3819.8,0.12997446]
[1641168372422,2.00479,3820.9,3819.8,1.31030678]
[1641168373822,2.00479,3820.9,3820.1,1.5]
[1641168374123,0.88072152,3821.1,3820.8,2.80766988]
[1641168374325,0.88072152,3821.1,3820.9,0.229991]
[1641168374524,1.46302844,3821.7,3821.0,0.122356]
[1641168374525,0.88072152,3821.2,3821.0,0.122356]
[1641168374723,0.75192152,3821.2,3821.0,0.122356]
[1641168375128,0.75192152,3821.2,3821.1,4.00958]
[1641168375324,0.75192152,3821.2,3821.1,4.239571]
[1641168375927,0.128157,3821.5,3821.1,4.239571]
[1641168376529,0.128157,3821.5,3821.1,4.00958]
[1641168376730,1.5,3821.3,3820.6,1.18033232]
[1641168377133,1.5,3821.3,3820.7,2.00479]
[1641168377333,2.891747,3821.5,3820.7,2.00479]
[1641168378532,2.132947,3821.5,3820.8,0.128157]
[1641168379634,2.132947,3821.5,3820.7,2.00479]
[1641168380033,1.5,3821.3,3820.7,2.00479]
[1641168380437,2.132947,3821.5,3820.7,2.00479]
[1641168380634,1.07019349,3821.3,3820.7,2.00479]
[1641168381636,2.132947,3821.5,3820.7,2.00479]
[1641168384640,3.632947,3821.5,3820.7,2.00479]
[1641168384847,1.5,3821.0,3820.7,2.00479]
[1641168385044,0.06331,3820.9,3820.7,2.00479]
[1641168385241,0.06331,3820.9,3820.3,2.00479]
[1641168387044,2.0681,3820.9,3820.3,2.00479]
[1641168390345,2.0681,3820.9,3820.3,2.132947]
[1641168391446,2.0681,3820.9,3820.3,2.00479]
[1641168392045,3.5681,3820.9,3820.3,2.00479]
[1641168393247,1.5,3820.4,3819.8,1.18033232]
[1641168393450,1.30848434,3820.7,3819.8,1.18033232]
[1641168393451,1.5,3820.0,3819.8,1.18033232]
[1641168393647,0.06331,3819.9,3819.8,1.18033232]
[1641168395252,4.07289,3819.9,3819.8,1.18033232]
[1641168395649,4.07289,3819.9,3819.6,0.88868993]
[1641168396752,3.54509,3819.9,3819.6,0.88868993]
[1641168399252,3.54509,3819.9,3819.5,0.88868993]
[1641168400053,3.54509,3819.9,3819.3,1.18033232]
[1641168400855,3.54509,3819.9,3819.4,0.128157]
[1641168401055,3.54509,3819.9,3819.4,1.30848932]
[1641168401755,2.00479,3819.5,3818.8,1.77049848]
[1641168401956,2.00479,3819.5,3819.1,2.23038894]
[1641168402156,2.00479,3819.5,3819.4,1.77049848]
[1641168403159,2.00479,3819.5,3819.3,1.77049848]
[1641168403758,2.00479,3819.5,3819.4,0.229991]
[1641168404158,2.8849379,3819.5,3819.4,0.229991]
[1641168405362,2.00479,3819.5,3819.2,1.89865548]
[1641168405563,2.00479,3819.5,3819.3,0.229991]
[1641168406560,2.00479,3819.5,3819.3,2.00048948]
[1641168406962,2.00479,3819.5,3819.3,3.50048948]
[1641168407161,0.8801479,3819.8,3819.3,3.50048948]
[1641168407363,0.8801479,3819.8,3819.7,1.5]
[1641168407563,1.16503326,3820.1,3819.7,2.626047]
[1641168407763,1.16503326,3820.1,3819.8,2.00479]
[1641168408565,1.16503326,3820.1,3819.9,0.229991]
[1641168409066,1.16503326,3820.1,3820.0,0.128157]
[1641168409467,3.16982326,3820.7,3820.0,0.128157]
[1641168409668,3.16982326,3820.7,3820.1,0.229991]
[1641168411568,2.00479,3820.7,3820.1,2.00048948]
[1641168413069,2.00479,3820.7,3820.1,0.229991]
[1641168413869,2.00479,3820.7,3820.0,1.89865548]
[1641168414070,0.55746616,3820.6,3820.0,1.89865548]
[1641168415175,0.55746616,3820.6,3820.0,0.128157]
[1641168415875,0.55746616,3820.6,3820.0,1.89865548]
[1641168417280,2.00479,3820.7,3820.1,0.1698733]
[1641168417882,2.00479,3820.7,3820.2,1.77049848]
[1641168419085,2.132947,3820.7,3820.2,1.77049848]
[1641168419285,2.132947,3820.7,3820.1,1.94037178]
[1641168419886,2.00479,3820.7,3820.1,1.94037178]
[1641168420285,2.00479,3820.7,3820.1,0.1698733]
[1641168421586,2.00479,3820.7,3820.1,1.94037178]
[1641168422587,2.00479,3820.7,3820.2,1.77049848]
[1641168424692,1.16503326,3820.9,3820.3,1.77049848]
[1641168425994,2.00479,3820.7,3820.3,1.77049848]
[1641168426697,0.55743705,3820.6,3820.3,1.77049848]
[1641168426894,0.55743705,3820.6,3820.2,1.77049848]
[1641168428097,0.88407411,3820.5,3820.2,1.77049848]
[1641168429199,0.88407411,3820.4,3820.2,1.77049848]
[1641168429399,0.88407411,3820.4,3820.3,0.229991]
[1641168429598,0.88407411,3820.4,3820.1,1.77049848]
[1641168430498,1.48567411,3820.4,3820.1,1.77049848]
[1641168430899,1.48567411,3820.4,3820.3,0.1698733]
[1641168432299,0.6016,3820.4,3820.3,0.1698733]
[1641168432500,0.6016,3820.4,3820.0,1.77049848]
[1641168432700,0.6016,3820.4,3819.9,0.1698733]
[1641168432701,1.15903705,3820.4,3819.9,0.1698733]
[1641168432901,0.55743705,3820.4,3819.9,0.1698733]
[1641168433402,0.8834022,3820.2,3819.9,0.1698733]
[1641168433602,0.8834022,3820.2,3820.0,0.229991]
[1641168434000,0.8834022,3820.2,3819.9,0.1698733]
[1641168434200,2.56222705,3820.3,3819.9,0.1698733]
[1641168434802,2.00479,3820.3,3820.1,0.1698733]
[1641168435003,3.16982326,3820.3,3820.1,0.1698733]
[1641168436206,0.55743705,3820.2,3820.0,0.1698733]
[1641168436705,0.55743705,3820.2,3820.0,0.3998643]
[1641168437106,0.88353509,3820.1,3820.0,0.3998643]
[1641168437805,0.88353509,3820.1,3820.0,0.1698733]
[1641168438206,2.00479,3820.3,3820.0,0.1698733]
[1641168439111,2.00479,3820.3,3820.2,1.18760451]
[1641168440812,2.00479,3820.3,3820.1,1.18760451]
[1641168441714,2.00479,3820.3,3820.1,1.41759551]
[1641168441913,2.00479,3820.3,3820.1,1.18760451]
[1641168442514,2.00479,3820.3,3820.1,1.35747781]
[1641168443616,2.88832509,3820.3,3820.0,1.18760451]
[1641168444016,2.88832509,3820.3,3820.1,0.229991]
[1641168444317,2.88832509,3820.3,3820.0,1.18760451]
[1641168445016,4.10214953,3820.3,3820.0,1.18760451]
[1641168445820,2.09735953,3820.3,3820.0,1.18760451]
[1641168446720,2.09735953,3820.3,3820.2,0.89076869]
[1641168446721,3.21861444,3820.3,3820.2,0.89076869]
[1641168448021,4.71861444,3820.3,3820.2,0.89076869]
[1641168448223,11.22,3820.2,3819.9,1.18760451]
[1641168448422,1.5,3820.0,3819.6,0.1698733]
[1641168448621,3.50479,3819.7,3819.4,2.35960178]
[1641168448823,1.5,3819.5,3819.4,2.35960178]
[1641168449024,1.5,3819.5,3819.4,0.5891033]
[1641168449221,2.60179,3819.7,3819.4,0.5891033]
[1641168449625,3.38720055,3819.7,3819.4,0.5891033]
[1641168449825,1.5,3819.5,3819.4,0.5891033]
[1641168450125,1.15442578,3819.5,3819.4,0.5891033]
[1641168451148,1.15442578,3819.5,3819.1,1.77049848]
[1641168451333,1.15442578,3819.5,3818.7,0.22310788]
[1641168451530,1.5,3819.1,3818.7,0.22310788]
[1641168451731,0.128157,3819.1,3818.7,0.22310788]
[1641168451931,1.628157,3819.1,3818.7,0.22310788]
[1641168452832,1.628157,3819.1,3818.7,1.99360636]
[1641168453331,1.5,3818.9,3818.7,1.99360636]
[1641168454733,2.00479,3818.8,3818.7,1.54560636]
[1641168454930,2.00479,3818.8,3818.7,0.35520636]
[1641168455632,2.00479,3818.8,3818.3,0.35520636]
[1641168455832,1.5,3818.6,3818.3,0.35520636]
[1641168456232,0.83278073,3818.5,3818.3,0.35520636]
[1641168456732,0.83278073,3818.5,3818.2,2.00479]
[1641168457132,0.83278073,3818.5,3818.3,0.229991]
[1641168457334,0.83278073,3818.5,3818.2,2.00479]
[1641168460636,2.33278073,3818.5,3818.2,2.00479]
[1641168460838,1.5,3818.3,3818.2,2.00479]
[1641168461236,1.628157,3818.3,3818.2,2.00479]
[1641168461738,0.128157,3818.3,3818.2,2.00479]
[1641168468742,0.128157,3818.3,3818.2,2.234781]
[1641168469443,0.128157,3818.3,3818.2,2.00479]
[1641168469843,0.128157,3818.3,3817.5,2.00479]
[1641168469844,2.329257,3818.3,3817.5,2.00479]
[1641168470044,1.5,3817.6,3817.2,0.88519923]
[1641168470247,0.128157,3817.5,3817.2,0.88519923]
[1641168470446,1.5,3817.3,3817.2,0.88519923]
[1641168470945,5.50958,3817.3,3817.2,0.88519923]
[1641168471346,6.81932912,3817.3,3817.0,1.18024253]
[1641168471547,6.81932912,3817.3,3816.1,4.23517894]
[1641168471548,11.22,3816.9,3816.4,0.98336379]
[1641168471746,1.5,3816.5,3816.4,0.98336379]
[1641168472046,1.5,3816.5,3816.3,0.88539151]
[1641168472047,14.15060499,3816.5,3816.3,0.88539151]
[1641168472246,15.53006484,3816.4,3816.3,9.151e-05]
[1641168472446,15.65822184,3816.4,3816.3,9.151e-05]
[1641168472847,14.348157,3816.4,3816.3,9.151e-05]
[1641168473050,18.357737,3816.4,3816.3,9.151e-05]
[1641168473448,18.357737,3816.4,3816.0,1.18052201]
[1641168473650,1.5,3816.1,3816.0,1.18052201]
[1641168473850,2.81020902,3816.1,3814.9,2.97514042]
[1641168474050,2.81020902,3816.1,3814.6,2.00479]
[1641168474051,11.22,3815.9,3814.6,2.00479]
[1641168474249,1.5,3815.4,3814.6,2.00479]
[1641168474450,0.128157,3815.3,3814.6,2.00479]
[1641168475050,1.01753904,3815.3,3814.6,2.00479]
[1641168476253,2.51753904,3815.3,3814.6,2.00479]
[1641168476853,1.01753904,3815.3,3814.6,2.00479]
[1641168477053,2.51753904,3815.3,3814.6,2.00479]
[1641168477453,1.01753904,3815.3,3814.6,2.00479]
[1641168477653,2.51753904,3815.3,3814.6,2.00479]
[1641168480155,1.01753904,3815.3,3814.6,2.00479]
[1641168480353,2.51753904,3815.3,3814.6,2.00479]
[1641168482456,1.01753904,3815.3,3813.9,1.5]
[1641168482657,2.51753904,3815.3,3813.9,1.5]
[1641168482856,1.01753904,3815.3,3813.9,1.5]
[1641168483056,2.00479,3814.5,3813.9,1.5]
[1641168483257,2.00479,3814.5,3813.9,1.628157]
[1641168483859,2.00479,3814.5,3813.9,0.128157]
[1641168484157,0.128157,3814.4,3813.7,2.66769]
[1641168484357,0.128157,3814.4,3813.7,2.00479]
[1641168485159,0.128157,3814.4,3813.8,0.128157]
[1641168485361,2.00479,3814.5,3813.8,0.128157]
[1641168486063,0.128157,3814.4,3813.8,0.128157]
[1641168486462,2.00479,3814.5,3813.8,0.128157]
[1641168486661,2.00479,3814.5,3813.8,1.628157]
[1641168487263,2.00479,3814.5,3813.8,0.128157]
[1641168487460,2.00479,3814.5,3814.2,1.5]
[1641168487660,2.00479,3814.5,3814.3,0.229991]
[1641168487861,2.00479,3814.5,3814.3,0.352347]
[1641168488460,2.00479,3815.5,3814.4,1.5]
[1641168488662,2.00479,3815.5,3814.3,0.122356]
[1641168489062,2.00479,3815.9,3815.0,2.00479]
[1641168489359,0.128157,3815.8,3815.0,2.68509]
[1641168489560,0.128157,3815.8,3815.1,0.128157]
[1641168490462,3.14182641,3815.9,3815.1,0.128157]
[1641168493263,2.61752641,3815.9,3815.1,0.128157]
[1641168495563,2.74568341,3815.9,3815.1,0.128157]
[1641168495964,2.61752641,3815.9,3815.1,0.128157]
[1641168499968,2.74568341,3815.9,3815.1,0.128157]
[1641168502469,2.61752641,3815.9,3815.1,0.128157]
[1641168504075,2.74568341,3815.9,3815.1,0.128157]
[1641168506380,2.61752641,3815.9,3815.1,0.128157]
[1641168513285,2.61752641,3815.9,3815.1,0.749857]
[1641168513686,0.128157,3815.8,3815.1,0.749857]
[1641168515191,2.61752641,3815.9,3815.1,0.749857]
[1641168516192,2.74568341,3815.9,3815.1,0.6217]
[1641168516591,2.74568341,3815.9,3815.2,0.128157]
[1641168518597,2.74568341,3815.9,3815.0,2.00479]
[1641168520496,2.74568341,3815.9,3815.1,0.128157]
[1641168520896,2.74568341,3815.9,3815.0,2.00479]
[1641168521095,3.27948341,3815.9,3815.0,2.00479]
[1641168521695,4.14587551,3815.9,3815.6,0.87856361]
[1641168521895,5.45600557,3815.9,3815.6,0.87856361]
[1641168523095,4.58961347,3815.9,3815.6,0.87856361]
[1641168523295,0.55834368,3815.8,3815.4,0.87856361]
[1641168523498,1.73409254,3815.8,3815.4,0.87856361]
[1641168524397,0.55834368,3815.7,3815.5,0.87856361]
[1641168526098,0.55834368,3815.7,3815.4,0.87856361]
[1641168527199,0.55834368,3815.7,3815.5,0.229991]
[1641168527400,0.55834368,3815.7,3815.4,0.87856361]
[1641168528000,1.17574886,3815.8,3815.5,0.229991]
[1641168528501,2.61752641,3815.9,3815.5,0.229991]
[1641168529303,2.61752641,3815.9,3815.8,0.89190258]
[1641168530308,2.61752641,3815.9,3815.6,0.18696099]
[1641168530309,4.48595727,3815.9,3815.7,0.89190258]
[1641168530506,5.16215727,3815.9,3815.7,0.89190258]
[1641168531405,0.55829565,3815.8,3815.5,0.89190258]
[1641168532607,0.55829565,3815.8,3815.6,0.229991]
[1641168532608,1.73404451,3815.8,3815.6,0.229991]
[1641168532810,1.73404451,3815.8,3815.4,0.89190258]
[1641168534208,0.55829565,3815.7,3815.4,1.07886357]
[1641168534408,0.55829565,3815.7,3815.5,0.229991]
[1641168534808,0.55829565,3815.7,3815.5,1.12189358]
[1641168535208,0.55829565,3815.7,3815.5,0.89190258]
[1641168536011,0.55829565,3815.8,3815.5,0.89190258]
[1641168537112,1.73404451,3815.8,3815.5,0.89190258]
[1641168538113,1.73404451,3815.8,3815.4,1.07901191]
[1641168540014,0.88032785,3815.5,3815.4,1.07901191]
[1641168540418,0.88032785,3815.5,3815.4,1.30900291]
[1641168541017,0.88032785,3815.5,3815.4,1.12189358]
[1641168542519,2.52025195,3815.8,3815.4,0.229991]
[1641168542719,1.17574886,3815.7,3815.4,0.41710033]
[1641168543219,1.17574886,3815.7,3815.5,1.07935493]
[1641168543419,1.73404451,3815.7,3815.5,1.07935493]
[1641168544520,1.73404451,3815.7,3815.4,0.8922456]
[1641168544721,1.17574886,3815.6,3815.4,0.8922456]
[1641168545221,0.59923176,3815.2,3815.1,1.18052201]
[1641168545423,4.3597832,3815.2,3815.1,1.18052201]
[1641168545623,2.450157,3815.2,3814.2,2.23038894]
[1641168545822,1.5,3814.9,3814.2,2.23038894]
[1641168546022,0.950157,3815.2,3814.2,2.23038894]
[1641168546321,2.00479,3814.8,3814.2,2.23038894]
[1641168547122,2.66654842,3814.8,3814.2,2.23038894]
[1641168547524,15.19707338,3814.8,3813.9,2.62547599]
[1641168547724,16.69707338,3814.8,3813.9,2.62547599]
[1641168548325,14.22,3814.7,3813.9,2.62547599]
[1641168548525,11.22,3814.7,3813.9,2.00479]
[1641168549124,1.31066409,3814.3,3813.9,2.00479]
[1641168549323,0.128157,3814.2,3813.9,2.00479]
[1641168550727,0.78657526,3814.1,3813.9,2.00479]
[1641168551725,0.78657526,3814.1,3813.6,2.00479]
[1641168553131,0.128157,3814.2,3813.6,2.00479]
[1641168554134,1.628157,3814.2,3813.6,2.00479]
[1641168554332,2.81083074,3813.9,3813.6,2.00479]
[1641168554532,2.2866383,3813.7,3813.4,1.77176099]
[1641168555132,13.5066383,3813.7,3813.4,1.77176099]
[1641168555334,0.88480152,3813.6,3813.4,0.98505333]
[1641168555632,1.31103525,3813.5,3813.1,2.23038894]
[1641168555843,0.128157,3813.4,3813.1,2.23038894]
[1641168556034,0.128157,3813.4,3812.9,0.62068599]
[1641168556233,0.128157,3813.4,3813.1,1.78516114]
[1641168556432,2.132947,3813.4,3813.1,1.78516114]
[1641168557235,1.5,3813.2,3813.1,1.78516114]
[1641168557437,14.0312209,3813.2,3813.1,1.78516114]
[1641168557835,14.0312209,3813.2,3812.9,0.62068599]
[1641168558136,3.0,3813.0,3812.9,0.62068599]
[1641168558338,16.83709,3813.0,3812.5,2.97514042]
[1641168558536,16.83709,3813.0,3812.2,2.23038894]
[1641168559439,2.81147369,3812.3,3812.2,2.23038894]
[1641168559639,1.31147369,3812.3,3812.2,2.23038894]
[1641168559838,2.93963069,3812.3,3811.5,4.07537653]
[1641168560036,1.43963069,3812.3,3811.5,4.07537653]
[1641168560237,3.44442069,3812.3,3811.5,4.07537653]
[1641168560639,2.132947,3812.3,3811.5,3.45469054]
[1641168560845,1.31172141,3811.6,3811.5,2.23038894]
[1641168561040,11.22,3811.5,3811.2,1.84014042]
[1641168561239,11.22,3811.5,3809.4,31.7689]
[1641168561240,14.22,3811.3,3809.4,31.7689]
[1641168561537,0.99523819,3811.4,3809.4,31.7689]
[1641168561737,2.08602141,3811.6,3809.4,31.7689]
[1641168561938,1.31172141,3811.6,3810.0,1.5]
[1641168562237,31.8063,3811.9,3810.5,1.5]
[1641168562442,2.00479,3811.3,3810.4,2.00479]
[1641168562639,2.00479,3811.3,3810.5,0.128157]
[1641168562837,2.132947,3811.3,3810.5,0.128157]
[1641168563843,2.00479,3811.3,3810.5,0.128157]
[1641168565239,2.132947,3811.3,3810.5,0.128157]
[1641168565441,3.3714488,3811.3,3810.5,0.128157]
[1641168566042,3.3714488,3811.3,3810.4,2.00479]
[1641168566240,1.31178164,3811.1,3810.5,0.128157]
[1641168566641,4.1917488,3811.3,3810.5,0.128157]
[1641168566940,1.31174378,3811.2,3810.4,2.00479]
[1641168568744,1.88904378,3811.2,3810.4,2.00479]
[1641168569344,1.88904378,3811.2,3810.5,0.128157]
[1641168569946,1.31218098,3810.6,3810.0,2.00479]
[1641168570246,0.128157,3810.5,3810.0,2.00479]
[1641168571446,1.31193652,3810.6,3810.1,0.128157]
[1641168571847,2.00479,3810.7,3810.1,0.128157]
[1641168571848,3.31670759,3810.7,3810.1,0.128157]
[1641168572247,2.00479,3810.7,3810.1,0.128157]
[1641168573849,0.71285554,3810.6,3810.1,0.128157]
[1641168575650,0.71285554,3810.6,3810.3,1.5]
[1641168575850,0.71285554,3810.6,3810.4,0.229991]
[1641168576453,2.00479,3811.3,3810.4,0.229991]
[1641168576454,2.00479,3811.3,3810.5,1.5]
[1641168576650,2.00479,3811.3,3810.8,1.5]
[1641168576850,2.00479,3811.7,3810.9,0.128157]
[1641168577852,0.88743532,3811.6,3810.9,0.128157]
[1641168578452,0.88743532,3811.6,3811.0,1.5]
[1641168578854,0.88743532,3811.6,3810.9,2.132947]
[1641168579453,1.51663532,3811.6,3810.9,2.132947]
[1641168580255,1.64479232,3811.6,3810.9,2.132947]
[1641168581558,1.51663532,3811.6,3811.0,1.5]
[1641168581756,1.51663532,3811.6,3810.9,2.132947]
[1641168581955,0.88743532,3811.6,3810.9,2.132947]
[1641168582357,0.86322148,3811.3,3811.0,0.0931512]
[1641168583960,2.1137596,3811.3,3811.0,0.0931512]
[1641168584558,2.1137596,3811.3,3811.1,0.229991]
[1641168585059,0.86322148,3811.2,3811.1,0.229991]
[1641168585561,0.86322148,3811.2,3811.0,0.0931512]
[1641168586160,0.86322148,3811.2,3811.1,0.0931512]
[1641168587063,0.86322148,3811.2,3810.9,2.132947]
[1641168587480,1.25053812,3811.3,3811.0,0.229991]
[1641168587662,1.25053812,3811.3,3810.9,2.00479]
[1641168589765,2.86801148,3811.7,3810.9,2.00479]
[1641168589766,2.86801148,3811.7,3811.0,1.5]
[1641168589967,2.00479,3811.7,3811.0,2.2765]
[1641168590765,2.00479,3811.7,3811.0,0.7765]
[1641168590965,0.71622084,3811.6,3811.0,0.7765]
[1641168591570,15.53176787,3811.1,3810.0,0.97365745]
[1641168591766,1.5,3810.1,3810.0,0.97365745]
[1641168591967,2.0701,3810.1,3810.0,0.97365745]
[1641168592264,2.192456,3810.1,3810.0,0.97365745]
[1641168592465,2.192456,3810.1,3809.7,0.97365745]
[1641168592665,4.00958,3809.8,3809.7,0.97365745]
[1641168592866,4.00958,3809.8,3809.7,1.20364845]
[1641168593064,1.5,3810.7,3809.7,1.20364845]
[1641168593465,2.81192448,3810.7,3809.7,0.229991]
[1641168593866,1.5,3810.7,3809.7,0.229991]
[1641168594068,0.66670242,3810.6,3809.7,0.229991]
[1641168594365,0.128157,3810.5,3809.7,0.229991]
[1641168594564,0.128157,3810.5,3810.0,2.00479]
[1641168594965,1.5,3810.3,3810.0,2.00479]
[1641168595166,0.128157,3810.5,3810.0,2.00479]
[1641168598871,1.5,3810.2,3810.0,2.00479]
[1641168599069,0.95978738,3810.1,3810.0,2.00479]
[1641168599869,0.128157,3810.5,3810.0,2.00479]
[1641168599870,1.5,3810.5,3810.0,2.00479]
[1641168600073,0.86322148,3810.8,3810.1,0.122356]
[1641168600770,0.86322148,3810.8,3810.7,2.00479]
[1641168600975,1.29888878,3811.1,3810.7,2.234781]
[1641168601274,0.128157,3811.1,3810.7,2.234781]
[1641168601474,0.128157,3811.1,3810.7,2.00479]
[1641168602073,1.5,3810.8,3810.7,2.00479]
[1641168602874,1.5,3810.8,3810.7,2.234781]
[1641168603075,1.5,3810.8,3810.7,2.00479]
[1641168603875,1.5,3810.8,3810.7,2.234781]
[1641168604076,1.5,3810.8,3810.7,2.00479]
[1641168605577,3.48513284,3811.0,3810.7,2.234781]
[1641168605776,4.98513284,3811.0,3810.7,2.234781]
[1641168605978,1.5,3810.9,3810.7,2.234781]
[1641168606477,2.1733013,3811.0,3810.7,2.00479]
[1641168606679,1.5,3810.8,3810.7,2.00479]
[1641168607080,1.31007982,3811.0,3810.7,2.00479]
[1641168607477,2.81007982,3811.0,3810.7,2.00479]
[1641168607678,1.31007982,3811.0,3810.7,2.00479]
[1641168607877,1.5,3810.8,3810.7,2.00479]
[1641168608077,1.5,3810.8,3810.0,2.00479]
[1641168608078,4.86888833,3810.8,3810.0,2.00479]
[1641168608278,1.5,3810.1,3810.0,2.00479]
[1641168608578,1.628157,3810.1,3809.7,1.18727492]
[1641168608777,1.5,3810.0,3809.7,1.18727492]
[1641168609181,1.5,3809.9,3809.7,1.18727492]
[1641168609478,0.128157,3810.1,3809.7,1.18727492]
[1641168609878,0.83689294,3810.0,3809.7,1.18727492]